fUSD/lending_fUSD_20250228
["ID","MTS","AMOUNT","RATE_DAILY","PERIOD"]
[354887506,1740783034518,-500.0,0.00035974,120]
[354887507,1740783034527,-500.0,0.00035974,90]
[354887508,1740783034536,-500.0,0.00035974,90]
[354887509,1740783034545,-7000.0,0.0003599,10]
[354887510,1740783034556,-1090.99742446,0.00036314,7]
[354887511,1740783034568,-4932.12467999,0.0003645,2]
[354887512,1740783034578,-1112.0,0.00036569,2]
[354887513,1740783034587,-2306.0,0.00037,117]
[354887514,1740783034596,-166.31560323,0.000372,103]
[354887515,1740783034607,-150.0,0.00037223,2]
[354887516,1740783034617,-151.628,0.00037223,2]
[354887517,1740783034798,-280.682,0.00037223,2]
[354887518,1740783034820,-158.999,0.00037223,2]
[354887519,1740783034829,-250.0,0.00037223,2]
[354887520,1740783034838,-206.283,0.00037223,2]
[354887521,1740783034847,-150.0,0.00037259,120]
[354887522,1740783034857,-183.38591013,0.000374,10]
[354887523,1740783034866,-815.69,0.00037464,2]
[354887524,1740783034875,-150.08,0.00037573,2]
[354887525,1740783034884,-1090.99742446,0.0003759,7]
[354887526,1740783034894,-4161.1246778,0.0003759,2]
[354887527,1740783034903,-166.65883758,0.000378,2]
[354887528,1740783034913,-2176.42807356,0.00038,2]
[354887529,1740783034923,-695.14109366,0.00038,120]
[354887530,1740783034932,-2105.45273492,0.00038233,2]
[354887531,1740783034941,-177.3,0.00038356,120]
[354887532,1740783034950,-2621.73254392,0.00038734,2]
[354887533,1740783034960,-162.92,0.00038787,120]
[354887534,1740783034969,-1090.99742446,0.00038866,8]
[354887535,1740783034979,-156.52,0.00039388,2]
[354887536,1740783034989,-150.86,0.00039452,2]
[354887537,1740783034998,-171.48,0.00039452,2]
[354887538,1740783035007,-151.3,0.00039452,2]
[354887539,1740783035016,-1112.0,0.00039569,2]
[354887540,1740783035027,-815.69,0.00039728,2]
[354887541,1740783035036,-150.08,0.00039922,2]
[354887542,1740783035045,-500.0,0.00039999,31]
[354887543,1740783035054,-188.93370759,0.00039999,31]
[354887544,1740783035064,-407.26220968,0.00039999,31]
[354887545,1740783035073,-500.0,0.00039999,31]
[354887546,1740783035082,-500.0,0.00039999,31]
[354887547,1740783035091,-500.0,0.00039999,31]
[354887548,1740783035101,-500.0,0.00039999,31]
[354887549,1740783035112,-500.0,0.00039999,31]
[354887550,1740783035122,-375.62280883,0.0004,2]
[354887551,1740783035132,-210.52409997,0.0004,2]
[354887552,1740783035141,-500.0,0.0004,90]
[354887553,1740783035150,-750.0,0.0004,120]
[354887554,1740783035160,-695.14109366,0.0004,120]
[354887555,1740783035169,-300.0,0.0004,2]
[354887556,1740783035178,-1090.99742446,0.00040141,8]
[354887557,1740783035187,-150.0,0.00040223,2]
[354887558,1740783035196,-150.0,0.00040223,2]
[354887559,1740783035206,-150.0,0.00040223,2]
[354887560,1740783035216,-150.0,0.00040223,2]
[354887561,1740783035225,-300.0,0.000404,2]
[354887562,1740783035234,-300.0,0.000408,2]
[354887563,1740783035243,-843.47121658,0.00041,30]
[354887564,1740783035252,-1500.0,0.00041096,120]
[354887565,1740783035261,-1090.99742446,0.00041417,9]
[354887566,1740783035270,-2105.45273492,0.00041567,15]
[354887567,1740783035279,-2621.73254392,0.00041817,15]
[354887568,1740783035289,-815.69,0.00041992,2]
[354887569,1740783035298,-657.8803685,0.00041999,120]
[354887570,1740783035307,-150.030107,0.00042198,120]
[354887571,1740783035316,-150.08,0.0004227,2]
[354887572,1740783035326,-150.030107,0.00042498,120]
[354887573,1740783035336,-622.388,0.00042569,2]
[354887574,1740783035345,-1090.99742446,0.00042693,9]
[354887575,1740783035355,-150.030107,0.00042798,120]
[354887576,1740783035365,-25000.0,0.00043,120]
[354887577,1740783035374,-1390.28218731,0.00043,120]
[354887578,1740783035384,-150.030107,0.00043198,120]
[354887579,1740783035393,-150.0,0.00043223,2]
[354887580,1740783035403,-150.0,0.00043223,2]
[354887581,1740783035412,-150.030107,0.00043498,120]
[354887582,1740783035421,-155.85499005,0.000435,120]
[354887583,1740783035431,-150.030107,0.00043798,120]
[354887584,1740783035440,-1777.37,0.00043835,2]
[354887585,1740783035450,-1777.37,0.00043835,2]
[354887586,1740783035460,-1777.37,0.00043835,2]
[354887587,1740783035470,-500.0,0.00043835,2]
[354887588,1740783035481,-500.0,0.00043835,2]
[354887589,1740783035492,-500.0,0.00043835,2]
[354887590,1740783035500,-1090.99742446,0.00043969,9]
[354887591,1740783035511,-150.0,0.00044027,14]
[354887592,1740783035520,-150.030107,0.00044198,120]
[354887593,1740783035530,-815.69,0.00044255,2]
[354887594,1740783035539,-156.52,0.00044312,2]
[354887595,1740783035549,-150.0,0.00044458,14]
[354887596,1740783035560,-150.030107,0.00044498,120]
[354887597,1740783035569,-3482.24,0.000445,8]
[354887598,1740783035579,-171.48,0.00044585,2]
[354887599,1740783035589,-150.08,0.00044618,2]
[354887600,1740783035600,-150.0,0.00044673,14]
[354887601,1740783035611,-3801.8,0.000447,21]
[354887602,1740783035620,-150.0,0.00044783,14]
[354887603,1740783035630,-150.0,0.00044794,14]
[354887604,1740783035640,-1039.8393631,0.000448,30]
[354887605,1740783035649,-153.552817,0.00044899,14]
[354887606,1740783035659,-151.0,0.00044899,14]
[354887607,1740783035668,-151.0,0.00044899,7]
[354887608,1740783035677,-209.955696,0.00044899,14]
[354887609,1740783035687,-151.0,0.00044899,14]
[354887610,1740783035696,-151.0,0.00044899,14]
[354887611,1740783035705,-151.0,0.00044899,14]
[354887612,1740783035715,-151.0,0.00044899,14]
[354887613,1740783035724,-1547.384717,0.000449,61]
[354887614,1740783035734,-183.38591013,0.000449,20]
[354887615,1740783035747,-177.67637598,0.000449,17]
[354887616,1740783035757,-2105.45273492,0.000449,15]
[354887617,1740783035766,-166.31560322,0.000449,120]
[354887618,1740783035776,-8959.78826751,0.000449,2]
[354887619,1740783035787,-2621.73254392,0.000449,15]
[354887620,1740783035796,-500.0,0.00044935,2]
[354887621,1740783035805,-500.0,0.00044935,2]
[354887622,1740783035816,-500.0,0.00044935,2]
[354887623,1740783035826,-500.0,0.00044935,2]
[354887624,1740783035835,-953.0,0.00044935,2]
[354887625,1740783035845,-500.0,0.00044935,2]
[354887626,1740783035855,-500.0,0.00044935,2]
[354887627,1740783035864,-500.0,0.00044935,2]
[354887628,1740783035874,-500.0,0.00044935,2]
[354887629,1740783035883,-500.0,0.00044935,2]
[354887630,1740783035892,-500.0,0.00044935,2]
[354887631,1740783035902,-500.0,0.00044935,2]
[354887632,1740783035911,-500.0,0.00044935,2]
[354887633,1740783035921,-500.0,0.00044935,2]
[354887634,1740783035930,-500.0,0.00044935,2]
[354887635,1740783035939,-500.0,0.00044935,2]
[354887636,1740783035948,-673.0,0.00044935,2]
[354887637,1740783035958,-500.0,0.00044935,2]
[354887638,1740783035968,-500.0,0.00044935,2]
[354887639,1740783035978,-500.0,0.00044935,2]
[354887640,1740783035988,-500.0,0.00044935,2]
[354887641,1740783035997,-500.0,0.00044935,2]
[354887642,1740783036007,-500.0,0.00044935,2]
[354887643,1740783036017,-500.0,0.00044935,2]
[354887644,1740783036026,-500.0,0.00044935,2]
[354887645,1740783036036,-500.0,0.00044935,2]
[354887646,1740783036045,-505.0,0.00044935,2]
[354887647,1740783036055,-1777.37,0.00044968,2]
[354887648,1740783036064,-7582.6079972,0.00044969,2]
[354887649,1740783036074,-1951.5550756,0.00044969,2]
[354887650,1740783036083,-1436.5613751,0.00044969,2]
[354887651,1740783036093,-150.5,0.0004497,120]
[354887652,1740783036103,-150.5,0.0004498,120]
[354887653,1740783036113,-1000.0,0.00044987,120]
[354887654,1740783036122,-218.91902431,0.0004499,7]
[354887655,1740783036132,-287.36,0.0004499,30]
[354887656,1740783036142,-150.5,0.0004499,120]
[354887657,1740783036151,-218.91902431,0.0004499,7]
[354887658,1740783036160,-218.91902431,0.0004499,7]
[354887659,1740783036170,-216.80140573,0.0004499,120]
[354887660,1740783036179,-200.0,0.0004499,120]
[354887661,1740783036189,-167.68,0.00044999,15]
[354887662,1740783036199,-1000.0,0.00044999,120]
[354887663,1740783036208,-150.0,0.00044999,2]
[354887664,1740783036217,-1714.42550241,0.00044999,2]
[354887665,1740783036226,-150.0,0.00044999,2]
[354887666,1740783036236,-1179.18917248,0.00044999,2]
[354887667,1740783036245,-151.0,0.00044999,14]
[354887668,1740783036254,-1777.37,0.00044999,2]
[354887669,1740783036264,-1777.37,0.00044999,2]
[354887670,1740783036273,-1777.37,0.00044999,2]
[354887671,1740783036282,-1777.37,0.00044999,2]
[354887672,1740783036291,-1777.37,0.00044999,2]
[354887673,1740783036300,-1777.37,0.00044999,2]
[354887674,1740783036309,-1777.37,0.00044999,2]
[354887675,1740783036319,-1777.37,0.00044999,2]
[354887676,1740783036329,-1777.37,0.00044999,2]
[354887677,1740783036338,-1777.37,0.00044999,2]
[354887678,1740783036347,-1777.37,0.00044999,2]
[354887679,1740783036357,-1777.37,0.00044999,2]
[354887680,1740783036366,-1777.37,0.00044999,2]
[354887681,1740783036375,-1777.37,0.00044999,2]
[354887682,1740783036384,-1777.37,0.00044999,2]
[354887683,1740783036393,-1777.37,0.00044999,2]
[354887684,1740783036403,-1777.37,0.00044999,2]
[354887685,1740783036412,-1777.37,0.00044999,2]
[354887686,1740783036422,-1777.37,0.00044999,2]
[354887687,1740783036432,-1777.51,0.00044999,2]
[354887688,1740783036442,-500.0,0.00044999,2]
[354887689,1740783036451,-500.0,0.00044999,2]
[354887690,1740783036461,-500.0,0.00044999,2]
[354887691,1740783036471,-500.0,0.00044999,2]
[354887692,1740783036480,-500.0,0.00044999,2]
[354887693,1740783036490,-449.48,0.00044999,2]
[354887694,1740783036499,-97767.76514818,0.00045,25]
[354887695,1740783036509,-363731.20238493,0.00045,90]
[354887696,1740783036961,-297.31,0.00045,90]
[354887697,1740783036997,-255.303,0.00045,90]
[354887698,1740783037090,-16964.33660003,0.00045,90]
[354887699,1740783037101,-367951.79873844,0.00045,90]
[354887776,1740783038741,-1702.0,0.00043735,120]
[354887906,1740783039944,-5798.0,0.00043735,120]
[354887908,1740783039953,-3925.17236,0.00045,34]
[354887924,1740783040102,-5518.02567105,0.00045,34]
[354887927,1740783040113,-2012.91445948,0.00045,34]
[354887967,1740783044867,-433.98184392,0.00031874,2]
[354887968,1740783044877,-151.0,0.00044935,14]
[354887969,1740783044886,-151.0,0.00044935,14]
[354887970,1740783044896,-11937.59089149,0.00045,34]
[354887975,1740783046026,-290.89188853,0.000449,2]
[354887976,1740783046036,-151.0,0.00044935,14]
[354887977,1740783046046,-4297.76851148,0.00045,34]
[354887978,1740783046289,-2631.23536976,0.00045,34]
[354888130,1740784117660,-514.1019952,0.000149,2]
[354888142,1740784232029,-317.4193048,0.000149,2]
[354888143,1740784232038,-267.31039501,0.000161,2]
[354888144,1740784232049,-164.96966431,0.000161,2]
[354888145,1740784232058,-558.52695707,0.000162,2]
[354888146,1740784232071,-4847.65367881,0.000162,2]
[354888147,1740784232230,-1240.95878,0.000162,2]
[354888148,1740784232243,-447.46047696,0.000162,2]
[354888149,1740784232300,-2208.97184433,0.000162,2]
[354888160,1740784237951,-25609.95098457,0.000162,2]
[354888161,1740784237966,-2900.04379403,0.000162,2]
[354888162,1740784237982,-450.0,0.0001782,2]
[354888163,1740784237996,-150.0,0.0001782,2]
[354888164,1740784238010,-450.0,0.0001944,2]
[354888165,1740784238026,-150.0,0.0001944,2]
[354888166,1740784238041,-250.0,0.00019688,2]
[354888167,1740784238056,-1161.0,0.000202,2]
[354888168,1740784238070,-254.56606592,0.000207,2]
[354888169,1740784238083,-254.5660657,0.000207,2]
[354888170,1740784238098,-254.5660657,0.000207,2]
[354888171,1740784238113,-250.0,0.00021,2]
[354888172,1740784238129,-254.5660657,0.00021521,2]
[354888173,1740784238144,-179.61,0.00021918,2]
[354888174,1740784238157,-254.5660657,0.00022728,3]
[354888175,1740784238173,-1000.0,0.00022881,2]
[354888177,1740784238187,-300.0,0.00023,2]
[354888180,1740784238202,-254.5660657,0.00023934,3]
[354888182,1740784238217,-7477.65,0.00024174,2]
[354888184,1740784238231,-500.0,0.00024932,2]
[354888187,1740784238246,-500.0,0.00024932,2]
[354888189,1740784238260,-500.0,0.00024932,2]
[354888192,1740784238275,-500.0,0.00024932,2]
[354888195,1740784238290,-350.0,0.00025,2]
[354888197,1740784238304,-254.5660657,0.00025141,4]
[354888200,1740784238317,-1907.679,0.00026218,12]
[354888202,1740784238331,-165.406,0.00026218,12]
[354888205,1740784238347,-254.5660657,0.00026348,4]
[354888207,1740784238361,-400.0,0.00027,2]
[354888210,1740784238375,-254.5660657,0.00027555,4]
[354888212,1740784238389,-254.5660657,0.00028762,5]
[354888215,1740784238403,-450.0,0.00029,2]
[354888217,1740784238417,-254.5660657,0.00029969,5]
[354888220,1740784238430,-500.0,0.00031,2]
[354888222,1740784238445,-254.5660657,0.00031176,5]
[354888225,1740784238459,-254.5660657,0.00032383,6]
[354888227,1740784238472,-550.0,0.00033,2]
[354888230,1740784238486,-450.0,0.00033082,2]
[354888231,1740784238500,-150.0,0.00033082,2]
[354888232,1740784238514,-254.5660657,0.0003359,6]
[354888233,1740784238527,-750.0,0.000339,2]
[354888234,1740784238541,-254.5660657,0.00034797,7]
[354888235,1740784238556,-600.0,0.00035,2]
[354888236,1740784238570,-2395.87,0.00035718,2]
[354888237,1740784238584,-960.71,0.0003573,2]
[354888238,1740784238598,-2318.82,0.00035814,2]
[354888240,1740784238614,-150.05,0.00035816,2]
[354888242,1740784238628,-8795.24,0.00035949,2]
[354888245,1740784238641,-254.5660657,0.00036003,7]
[354888247,1740784238654,-1000.0,0.00036025,2]
[354888249,1740784238668,-500.0,0.00036105,2]
[354888252,1740784238681,-2233.18,0.00036274,120]
[354888254,1740784238695,-163.02,0.00036446,2]
[354888256,1740784238708,-174.44,0.00036446,2]
[354888259,1740784238723,-150.0,0.00036492,7]
[354888261,1740784238736,-166.66,0.000365,2]
[354888264,1740784238750,-162.92,0.00036593,120]
[354888266,1740784238764,-1852.42,0.00036633,2]
[354888269,1740784238778,-262.02,0.00036727,120]
[354888271,1740784238792,-174.44,0.00037175,2]
[354888274,1740784238806,-254.5660657,0.0003721,7]
[354888276,1740784238820,-600.0,0.00037308,2]
[354888278,1740784238834,-166.66,0.00037705,2]
[354888281,1740784238848,-174.44,0.00037904,2]
[354888282,1740784238862,-150.0,0.000384,2]
[354888283,1740784238874,-150.05,0.00038412,2]
[354888284,1740784238883,-254.5660657,0.00038417,8]
[354888285,1740784238892,-174.44,0.00038633,2]
[354888286,1740784238902,-166.66,0.0003891,2]
[354888287,1740784238911,-174.44,0.00039362,2]
[354888288,1740784238920,-156.12,0.00039452,2]
[354888289,1740784238929,-1904.38,0.00039571,120]
[354888290,1740784238938,-250.0,0.00039571,2]
[354888291,1740784238948,-254.5660657,0.00039624,8]
[354888292,1740784238957,-150.0,0.000397,2]
[354888293,1740784238966,-163.02,0.00040091,2]
[354888294,1740784238976,-174.44,0.00040091,2]
[354888295,1740784238984,-166.66,0.00040115,2]
[354888317,1740784239303,-744.03,0.00040331,2]
[354888322,1740784239342,-2000.0,0.00040331,120]
[354888325,1740784239358,-1000.0,0.00040396,120]
[354888327,1740784239368,-1686.38,0.00040422,2]
[354888329,1740784239377,-1000.0,0.00040528,2]
[354888331,1740784239386,-254.5660657,0.00040831,8]
[354888333,1740784239396,-150.05,0.00041009,2]
[354888335,1740784239405,-285.01332008,0.00041096,2]
[354888337,1740784239415,-1500.0,0.00041096,120]
[354888339,1740784239424,-262.02,0.00041317,120]
[354888340,1740784239433,-166.66,0.0004132,2]
[354888342,1740784239443,-200.0,0.00041765,120]
[354888344,1740784239452,-254.5660657,0.00042038,9]
[354888346,1740784239462,-1013.77635724,0.00042305,2]
[354888348,1740784239472,-744.03,0.00042347,2]
[354888350,1740784239482,-463.52,0.0004243,2]
[354888352,1740784239491,-166.66,0.00042525,2]
[354888354,1740784239500,-294.0,0.00043,90]
[354888356,1740784239510,-294.0,0.00043014,90]
[354888358,1740784239519,-505.58,0.00043194,2]
[354888360,1740784239529,-254.5660657,0.00043245,9]
[354888362,1740784239538,-150.0,0.00043315,2]
[354888364,1740784239548,-300.0,0.00043528,2]
[354888366,1740784239557,-150.05,0.00043606,2]
[354888368,1740784239567,-15471.25,0.00043714,2]
[354888370,1740784239576,-163.02,0.00043735,2]
[354888372,1740784239586,-600.0,0.00043842,120]
[354888374,1740784239595,-23900.0,0.00043879,2]
[354888376,1740784239607,-524.09,0.00044,120]
[354888378,1740784239616,-155.6551682,0.00044099,4]
[354888380,1740784239626,-182.18,0.00044132,2]
[354888382,1740784239636,-744.03,0.00044364,2]
[354888384,1740784239645,-254.5660657,0.00044452,10]
[354888386,1740784239655,-278.16,0.00044466,30]
[354888388,1740784239665,-300.61,0.00044466,30]
[354888390,1740784239674,-150.0,0.00044466,30]
[354888392,1740784239684,-301.06,0.00044466,30]
[354888394,1740784239694,-150.0,0.00044466,30]
[354888396,1740784239703,-150.0,0.00044466,30]
[354888398,1740784239712,-3064.99035173,0.00044635,15]
[354888400,1740784239722,-3064.99035166,0.00044664,15]
[354888402,1740784239731,-8449.39,0.00044669,8]
[354888404,1740784239740,-1234.64,0.00044669,8]
[354888406,1740784239750,-463.52,0.00044694,2]
[354888408,1740784239760,-3064.99035166,0.00044694,15]
[354888410,1740784239769,-2500.0,0.000447,2]
[354888412,1740784239778,-3064.99035166,0.00044723,15]
[354888414,1740784239788,-17347.8405,0.00044735,2]
[354888416,1740784239798,-854.0416,0.00044735,2]
[354888418,1740784239807,-201.3069,0.00044735,2]
[354888420,1740784239817,-1000.0,0.00044735,2]
[354888422,1740784239827,-344.13,0.0004474,30]
[354888424,1740784239836,-3064.99035166,0.00044753,15]
[354888426,1740784239845,-2070.89510619,0.00044782,15]
[354888430,1740784239875,-994.09524547,0.00044782,15]
[354888432,1740784239885,-1754.08610517,0.000448,120]
[354888434,1740784239896,-535.96170527,0.000448,120]
[354888436,1740784239908,-540.3612263,0.000448,120]
[354888518,1740784240692,-2648.83986326,0.000448,120]
[354888520,1740784240702,-436.67628267,0.000448,17]
[354888522,1740784240711,-172.95717648,0.000448,20]
[354888524,1740784240721,-1336.83016318,0.000448,17]
[354888526,1740784240731,-306.80442628,0.000448,2]
[354888528,1740784240740,-2545.60881634,0.000448,21]
[354888530,1740784240749,-3064.99035166,0.00044812,15]
[354888532,1740784240759,-9257.19552861,0.00044822,15]
[354888534,1740784240768,-9257.19552861,0.00044833,15]
[354888536,1740784240778,-3064.99035166,0.00044841,15]
[354888538,1740784240789,-9257.19552861,0.00044844,15]
[354888540,1740784240798,-7150.71598264,0.00044856,15]
[354888542,1740784240810,-2106.47954597,0.00044856,15]
[354888544,1740784240820,-9257.19552861,0.00044867,15]
[354888546,1740784240829,-2966.36725942,0.00044871,15]
[354888549,1740784240842,-98.62309224,0.00044871,15]
[354888550,1740784240854,-156.12,0.00044871,2]
[354888553,1740784240864,-294.0,0.00044877,90]
[354888554,1740784240873,-24.39317353,0.00044878,15]
[354888557,1740784240886,-268.032,0.00044878,15]
[354888559,1740784240897,-8964.77035508,0.00044878,15]
[354888561,1740784240906,-864.09295633,0.00044889,15]
[354888563,1740784240918,-4014.5,0.00044889,15]
[354888570,1740784240984,-4378.60257228,0.00044889,15]
[354888573,1740784240993,-300.0,0.00044898,2]
[354888575,1740784241003,-1138.0,0.00044899,120]
[354888577,1740784241013,-197.39742772,0.00044899,120]
[354888579,1740784241025,-940.60257228,0.00044899,120]
[354888581,1740784241035,-1138.0,0.00044899,120]
[354888583,1740784241044,-1138.0,0.00044899,120]
[354888585,1740784241055,-1138.0,0.00044899,120]
[354888587,1740784241065,-1138.0,0.00044899,120]
[354888589,1740784241075,-1138.0,0.00044899,120]
[354888591,1740784241085,-32.33268392,0.00044899,120]
[354888593,1740784241100,-1105.66731608,0.00044899,120]
[354888595,1740784241109,-1138.0,0.00044899,120]
[354888597,1740784241119,-1138.0,0.00044899,120]
[354888599,1740784241132,-1138.0,0.00044899,120]
[354888601,1740784241143,-1138.0,0.00044899,120]
[354888603,1740784241152,-1138.0,0.00044899,120]
[354888605,1740784241163,-1138.0,0.00044899,120]
[354888607,1740784241173,-1138.0,0.00044899,120]
[354888609,1740784241183,-1138.0,0.00044899,120]
[354888611,1740784241192,-1138.0,0.00044899,120]
[354888613,1740784241202,-1138.0,0.00044899,120]
[354888615,1740784241218,-1138.0,0.00044899,120]
[354888617,1740784241229,-1138.0,0.00044899,120]
[354888619,1740784241239,-903.0,0.00044899,7]
[354888621,1740784241250,-3011.74955431,0.000449,2]
[354888623,1740784241262,-5663.00549854,0.000449,2]
[354888625,1740784241275,-1025.06710056,0.000449,2]
[354888630,1740784241315,-463672.5916242,0.000449,2]
[354888632,1740784241328,-13201.90983459,0.000449,2]
[354888635,1740784241340,-2480.31438949,0.000449,2]
[354888637,1740784241354,-7901.67657273,0.000449,2]
[354888639,1740784241366,-1034.6788,0.000449,2]
[354888641,1740784241378,-309.31443797,0.000449,2]
[354888652,1740784241472,-3365.45796823,0.000449,2]
[354888654,1740784241484,-518.72365054,0.000449,2]
[354888656,1740784241496,-415.405,0.000449,2]
[354888658,1740784241507,-31857.53796609,0.000449,2]
[354888660,1740784241519,-3150.11392817,0.000449,2]
[354888662,1740784241530,-987.58941939,0.000449,2]
[354888664,1740784241541,-34940.26146743,0.000449,2]
[354888766,1740784244150,-2545.60881634,0.0004485,21]
[354888767,1740784244160,-931.39118244,0.000449,2]
[354888768,1740784244173,-686.0995385,0.000449,2]
[354888771,1740784244219,-29725.01723561,0.000449,2]
[354888772,1740784244231,-371.45349006,0.000449,2]
[354888773,1740784244243,-929.94168185,0.000449,2]
[354888774,1740784244254,-991.47976175,0.000449,2]
[354888775,1740784244310,-9734.08086866,0.000449,2]
[354888776,1740784244322,-9065.3674064,0.000449,2]
[354888777,1740784244334,-292.35005528,0.000449,2]
[354888778,1740784244345,-383.30164025,0.000449,2]
[354888779,1740784244357,-649.83334176,0.000449,2]
[354888780,1740784244369,-2518.4180852,0.000449,2]
[354888781,1740784244378,-3525.12873197,0.000449,2]
[354888782,1740784244389,-1163.764995,0.000449,2]
[354888783,1740784244405,-26769.08249561,0.000449,2]
[354888790,1740784245217,-4390.0,0.000449,2]
[354888791,1740784245272,-15084.01965792,0.000449,2]
[354888792,1740784245284,-18635.74362997,0.000449,2]
[354888793,1740784245295,-16299.41848953,0.000449,2]
[354888794,1740784245304,-1000.0,0.000449,2]
[354888795,1740784245314,-500.0,0.000449,2]
[354888796,1740784245323,-2514.2933,0.000449,2]
[354888797,1740784245332,-36333.8515,0.000449,2]
[354888798,1740784245341,-88888.0,0.000449,3]
[354888799,1740784245352,-165.87548578,0.000449,28]
[354888800,1740784245362,-193.95846438,0.000449,20]
[354888801,1740784245372,-583.0,0.000449,120]
[354888802,1740784245382,-3064.99035166,0.000449,15]
[354888803,1740784245391,-7184.9613438,0.000449,15]
[354888815,1740784246131,-2072.23418481,0.000449,15]
[354888816,1740784246142,-4437.04645566,0.000449,2]
[354888817,1740784246191,-1536.14572268,0.000449,2]
[354888818,1740784246201,-2545.60881634,0.000449,22]
[354888819,1740784246214,-150.5,0.0004497,120]
[354888820,1740784246224,-150.5,0.0004498,120]
[354888821,1740784246234,-218.91902431,0.00044989,7]
[354888822,1740784246244,-150.5,0.0004499,120]
[354888823,1740784246254,-218.91902431,0.0004499,7]
[354888824,1740784246263,-1138.0,0.00044999,120]
[354888825,1740784246273,-1138.0,0.00044999,120]
[354888826,1740784246283,-1138.0,0.00044999,120]
[354888827,1740784246292,-995.17614856,0.00044999,120]
[354888828,1740784246308,-142.82385144,0.00044999,120]
[354888829,1740784246318,-1138.0,0.00044999,120]
[354888830,1740784246327,-1138.0,0.00044999,120]
[354888831,1740784246336,-413.51374856,0.00044999,120]
[354888832,1740784246347,-449.5557128,0.00044999,120]
[354888833,1740784246361,-274.93053864,0.00044999,120]
[354888834,1740784246371,-1138.0,0.00044999,120]
[354888835,1740784246381,-1138.0,0.00044999,120]
[354888836,1740784246391,-1138.0,0.00044999,120]
[354888837,1740784246400,-1138.0,0.00044999,120]
[354888838,1740784246410,-1138.0,0.00044999,120]
[354888839,1740784246419,-1138.0,0.00044999,120]
[354888840,1740784246429,-93.01354837,0.00044999,120]
[354888841,1740784246441,-1044.98645163,0.00044999,120]
[354888842,1740784246450,-1138.0,0.00044999,120]
[354888843,1740784246460,-2666.66666,0.00044999,53]
[354888844,1740784246469,-151.0,0.00044999,14]
[354888845,1740784246478,-51461.78434049,0.00045,34]
[354888859,1740784318706,3302.279206,0.00031985,120]
[354888869,1740785111096,999.999999,0.00031979,120]
[354888870,1740785121316,1764.49878619,0.00031979,120]
[354888874,1740785234046,-150.0,0.00014999,2]
[354888875,1740785234074,-500.0,0.00014999,2]
[354888876,1740785234102,-4350.0,0.00015,2]
[354888884,1740785262162,-500.0,0.00014999,2]
[354888885,1740785262189,-500.0,0.00014999,2]
[354888886,1740785262215,-500.0,0.00014999,2]
[354888887,1740785262241,-500.0,0.00014999,2]
[354888888,1740785262268,-500.0,0.00014999,2]
[354888889,1740785262293,-181.39534007,0.00014999,2]
[354888890,1740785262320,-47318.60465993,0.00015,2]
[354888900,1740785300573,-300.0,0.00014999,2]
[354888901,1740785300628,-49700.0,0.00015,2]
[354888902,1740785302264,-50000.0,0.00015,2]
[354888904,1740785308778,-17000.0,0.00015,2]
[354888910,1740785316736,2179.22784696,0.0001421,7]
[354888918,1740785341982,-10000.0,0.00015,2]
[354888992,1740785350206,-10000.0,0.00015,2]
[354888997,1740785358469,2000.0,0.0003297,120]
[354888998,1740785358535,-163.99936508,0.000149,2]
[354888999,1740785358562,-9836.00063492,0.00015,2]